bitfinex-derivatives/quotes_BTCF0:USTF0_20250904
["timestamp","ask_amount","ask_price","bid_price","bid_amount"]
[1757023270885,1.30570942,110530.0,110520.0,0.84347]
[1757023276296,0.6371,110530.0,110520.0,0.84347]
[1757023276493,0.97140471,110530.0,110520.0,0.84347]
[1757023281706,0.97141089,110530.0,110520.0,0.9339413]
[1757023285702,0.6371,110530.0,110520.0,1.1839413]
[1757023285902,0.6371,110530.0,110520.0,1.5447413]
[1757023286510,0.94909089,110530.0,110520.0,1.5447413]
[1757023289112,0.601,110530.0,110520.0,1.05705219]
[1757023289308,0.601,110530.0,110520.0,1.97436945]
[1757023289713,0.601,110530.0,110520.0,1.64005856]
[1757023289912,0.601,110530.0,110520.0,1.97436945]
[1757023292510,0.601,110530.0,110520.0,1.64005856]
[1757023292711,0.601,110530.0,110520.0,1.97436945]
[1757023293708,0.601,110530.0,110520.0,1.97536945]
[1757023293913,0.6,110530.0,110520.0,1.97736945]
[1757023294932,0.6,110530.0,110520.0,2.05155945]
[1757023305625,0.6,110530.0,110520.0,2.41235945]
[1757023307029,0.0001,110540.0,110530.0,0.1008943]
[1757023307232,0.36952089,110550.0,110540.0,0.1008861]
[1757023307424,0.36942089,110550.0,110540.0,1.2874061]
[1757023308633,0.36942089,110550.0,110540.0,0.9311261]
[1757023309026,0.37042089,110550.0,110540.0,0.9311261]
[1757023309430,0.37142089,110550.0,110540.0,0.9311261]
[1757023310628,0.002,110550.0,110540.0,0.9311261]
[1757023312228,0.03689,110550.0,110540.0,0.9311261]
[1757023315136,0.03689,110550.0,110540.0,0.1054061]
[1757023315632,0.37120089,110550.0,110540.0,0.7185661]
[1757023316937,0.37120089,110550.0,110540.0,0.9304461]
[1757023317233,0.95551178,110550.0,110540.0,0.00452]
[1757023317440,0.95551178,110550.0,110540.0,0.82956]
[1757023317638,0.95551178,110550.0,110540.0,0.8296]
[1757023318229,0.95551178,110550.0,110540.0,0.84003]
[1757023320331,0.62120089,110550.0,110540.0,0.9304861]
[1757023320526,0.37120089,110550.0,110540.0,0.9304861]
[1757023320732,0.002,110550.0,110540.0,0.9370061]
[1757023321033,0.02429,110550.0,110540.0,0.9304861]
[1757023321334,0.03689,110550.0,110540.0,0.9304861]
[1757023321743,0.37120089,110550.0,110540.0,0.9304861]
[1757023325144,0.03689,110550.0,110540.0,0.9304861]
[1757023325346,0.0146,110550.0,110540.0,0.9304861]
[1757023325547,0.03689,110550.0,110540.0,0.9304861]
[1757023325848,0.37120089,110550.0,110540.0,0.9304861]
[1757023326346,0.03689,110550.0,110540.0,0.9304861]
[1757023326748,0.37120089,110550.0,110540.0,0.9304861]
[1757023327647,0.03689,110550.0,110540.0,0.9304861]
[1757023327944,0.37120089,110550.0,110540.0,0.9304861]
[1757023328248,0.37120089,110550.0,110540.0,0.84003]
[1757023328442,0.95551178,110550.0,110540.0,0.83152]
[1757023328644,0.95551178,110550.0,110540.0,0.84195]
[1757023330254,0.62120089,110550.0,110540.0,0.84195]
[1757023334350,0.95551178,110550.0,110540.0,0.84195]
[1757023334550,0.95551178,110550.0,110540.0,0.92571]
[1757023334947,0.95551178,110550.0,110540.0,0.08828]
[1757023335349,0.95551178,110550.0,110540.0,0.91584]
[1757023337351,0.95551178,110550.0,110540.0,0.9158]
[1757023339055,0.28689,110550.0,110540.0,0.92623]
[1757023339247,0.95551178,110550.0,110540.0,0.92623]
[1757023339646,0.62120089,110550.0,110540.0,0.92623]
[1757023341451,0.95528362,110550.0,110540.0,0.92623]
[1757023341651,0.002,110550.0,110540.0,1.60088301]
[1757023341855,0.002,110550.0,110540.0,2.03206071]
[1757023342056,0.002,110550.0,110540.0,2.1978639]
[1757023342359,0.33619681,110550.0,110540.0,1.6978639]
[1757023343551,0.33619681,110550.0,110540.0,1.7720439]
[1757023345356,0.001,110550.0,110540.0,1.7720439]
[1757023345553,0.001,110550.0,110540.0,1.7730439]
[1757023345756,0.34711681,110560.0,110540.0,1.7730439]
[1757023345946,0.34711681,110560.0,110540.0,1.5231439]
[1757023347255,0.33419681,110550.0,110540.0,1.5231439]
[1757023347459,0.33419681,110550.0,110540.0,1.5230439]
[1757023347847,0.03481,110550.0,110540.0,1.18232709]
[1757023348048,0.36900681,110550.0,110540.0,1.5165239]
[1757023348449,0.36900681,110550.0,110540.0,0.6890039]
[1757023348657,0.36900681,110550.0,110540.0,0.17389]
[1757023348857,0.36900681,110550.0,110540.0,1.0930662]
[1757023349156,0.36900681,110550.0,110540.0,1.0920662]
[1757023349357,0.36900681,110550.0,110540.0,1.0930662]
[1757023349753,0.36900681,110550.0,110540.0,0.2643462]
[1757023349960,0.36900681,110550.0,110540.0,1.00257]
[1757023350354,0.36900681,110550.0,110540.0,1.0930262]
[1757023350859,0.36900681,110550.0,110540.0,0.2643462]
[1757023351060,0.36900681,110550.0,110540.0,1.0929462]
[1757023352460,0.36900681,110550.0,110540.0,1.0927462]
[1757023353864,0.03481,110550.0,110540.0,1.0927462]
[1757023354163,0.34708681,110550.0,110540.0,1.0927462]
[1757023356264,0.01289,110550.0,110540.0,1.0927462]
[1757023356464,0.34711681,110560.0,110540.0,1.51739111]
[1757023356668,0.33419681,110550.0,110540.0,1.42703491]
[1757023356866,0.33419681,110550.0,110540.0,1.42693491]
[1757023358960,0.34708681,110550.0,110540.0,1.0927381]
[1757023359161,0.36900681,110550.0,110540.0,1.0936181]
[1757023359956,0.36900681,110550.0,110540.0,1.00317]
[1757023360765,0.36900681,110550.0,110540.0,1.0936263]
[1757023361369,0.36900681,110550.0,110540.0,0.2643463]
[1757023361566,0.36900681,110550.0,110540.0,1.0936663]
[1757023365967,0.36900681,110550.0,110540.0,0.2643463]
[1757023366169,0.36900681,110550.0,110540.0,1.0931063]
[1757023371573,0.36900681,110550.0,110540.0,1.0925863]
[1757023371767,0.95320362,110550.0,110540.0,0.17389]
[1757023371961,0.95320362,110550.0,110540.0,1.00197]
[1757023373173,0.95320362,110550.0,110540.0,1.0924263]
[1757023373467,0.95320362,110550.0,110540.0,0.16346]
[1757023373668,0.28481,110550.0,110540.0,0.9925]
[1757023373859,0.03481,110550.0,110540.0,1.00293]
[1757023374264,0.70320362,110550.0,110540.0,1.00293]
[1757023374467,0.03481,110550.0,110540.0,1.00293]
[1757023374667,0.03581,110550.0,110540.0,1.00293]
[1757023374972,0.70420362,110550.0,110540.0,1.00293]
[1757023375168,0.95420362,110550.0,110540.0,0.16346]
[1757023375361,0.03581,110550.0,110540.0,1.0961462]
[1757023376067,0.37000681,110550.0,110540.0,1.0961462]
[1757023376272,0.95420362,110550.0,110540.0,1.00757]
[1757023376472,0.03581,110550.0,110540.0,1.0980263]
[1757023376775,0.37000681,110550.0,110540.0,1.00657]
[1757023377374,0.37000681,110550.0,110540.0,1.0970263]
[1757023377861,0.37000681,110550.0,110540.0,1.00657]
[1757023378065,0.70420362,110550.0,110540.0,1.00721]
[1757023378475,0.95420362,110550.0,110540.0,0.16246]
[1757023378772,0.95420362,110550.0,110540.0,1.00701]
[1757023380062,0.62000681,110550.0,110540.0,1.00701]
[1757023380268,0.95420362,110550.0,110540.0,1.00701]
[1757023380672,0.62000681,110550.0,110540.0,1.0974662]
[1757023380873,0.62000681,110550.0,110540.0,1.00701]
[1757023381265,0.70420362,110550.0,110540.0,1.00701]
[1757023381464,0.03581,110550.0,110540.0,1.00701]
[1757023381675,0.03581,110550.0,110540.0,1.0974662]
[1757023381973,0.37000681,110550.0,110540.0,1.00701]
[1757023383468,0.37000681,110550.0,110540.0,1.0974663]
[1757023383668,0.03581,110550.0,110540.0,1.0974663]
[1757023383871,0.37000681,110550.0,110540.0,1.0974663]
[1757023384068,0.03581,110550.0,110540.0,1.0974663]
[1757023384276,0.37000681,110550.0,110540.0,1.0974663]
[1757023386274,0.29835326,110550.0,110540.0,1.0974663]
[1757023386662,0.03581,110550.0,110540.0,1.0974663]
[1757023386866,0.001,110550.0,110540.0,1.36000956]
[1757023387177,0.001,110550.0,110540.0,1.70047045]
[1757023387375,0.001,110550.0,110540.0,1.43792719]
[1757023387575,0.001,110550.0,110540.0,1.70047045]
[1757023387974,0.001,110550.0,110540.0,1.43792719]
[1757023388174,0.27752326,110550.0,110540.0,1.43792719]
[1757023388371,0.27752326,110550.0,110540.0,1.70047045]
[1757023388770,0.26354326,110550.0,110540.0,1.70047045]
[1757023389469,0.26354326,110550.0,110540.0,1.0994262]
[1757023389470,0.29858326,110550.0,110540.0,1.0994262]
[1757023389670,0.29858326,110550.0,110540.0,1.00893]
[1757023390067,0.29858326,110550.0,110540.0,0.17289]
[1757023390276,0.56112652,110550.0,110540.0,1.00913]
[1757023390882,0.29858326,110550.0,110540.0,1.00913]
[1757023391684,0.03604,110550.0,110540.0,1.0995862]
[1757023391874,0.29858326,110550.0,110540.0,1.0995862]
[1757023392070,0.29858326,110550.0,110540.0,1.00913]
[1757023392389,0.56112652,110550.0,110540.0,1.00913]
[1757023392683,0.29858326,110550.0,110540.0,1.00913]
[1757023392877,0.29858326,110550.0,110540.0,1.0995863]
[1757023393184,0.29858326,110550.0,110540.0,1.00913]
[1757023393482,0.56112652,110550.0,110540.0,0.17289]
[1757023393882,0.56112652,110550.0,110540.0,1.01057]
[1757023394586,0.56112652,110550.0,110540.0,1.1010263]
[1757023394885,0.29858326,110550.0,110540.0,1.1010263]
[1757023395886,0.29858326,110550.0,110540.0,1.01057]
[1757023396185,0.56112652,110550.0,110540.0,1.01057]
[1757023397284,0.03604,110550.0,110540.0,1.1010262]
[1757023397484,0.27752326,110550.0,110540.0,1.1010262]
[1757023397788,0.56200652,110550.0,110540.0,1.01109]
[1757023397990,0.29946326,110550.0,110540.0,1.01109]
[1757023398286,0.29946326,110550.0,110540.0,1.1015463]
[1757023398480,0.03692,110550.0,110540.0,1.1015463]
[1757023398682,0.29946326,110550.0,110540.0,1.1015463]
[1757023399887,0.29946326,110550.0,110540.0,1.01109]
[1757023400075,0.56200652,110550.0,110540.0,1.01129]
[1757023401377,0.56200652,110550.0,110540.0,0.17289]
[1757023401581,0.56200652,110550.0,110540.0,1.00074]
[1757023402083,0.56200652,110550.0,110540.0,0.16246]
[1757023402386,0.56200652,110550.0,110540.0,1.00074]
[1757023402788,0.81200652,110550.0,110540.0,0.16246]
[1757023402982,0.28692,110550.0,110540.0,1.00106]
[1757023403180,0.81200652,110550.0,110540.0,1.00106]
[1757023403489,0.8121389,110550.0,110540.0,1.00106]
[1757023404092,0.29952945,110550.0,110540.0,1.0915163]
[1757023404288,0.03692,110550.0,110540.0,1.3415163]
[1757023404680,0.29952945,110550.0,110540.0,1.3415163]
[1757023405495,0.5621389,110550.0,110540.0,0.17289]
[1757023405694,0.5621389,110550.0,110540.0,1.01181]
[1757023407998,0.5621389,110550.0,110540.0,0.17289]
[1757023408195,0.5621389,110550.0,110540.0,1.01161]
[1757023408792,0.5621389,110550.0,110540.0,0.16246]
[1757023408993,0.8121389,110550.0,110540.0,1.00118]
[1757023409392,0.03692,110550.0,110540.0,1.0916362]
[1757023409692,0.29952945,110550.0,110540.0,1.00118]
[1757023412698,0.29952945,110550.0,110540.0,1.0916362]
[1757023412897,0.29952945,110550.0,110540.0,1.11003548]
[1757023413997,0.29952945,110550.0,110540.0,0.19128928]
[1757023414198,0.5621389,110550.0,110540.0,1.02976928]
[1757023416299,0.5621389,110550.0,110540.0,1.01137]
[1757023417095,0.03692,110550.0,110540.0,1.01137]
[1757023417290,0.03692,110550.0,110540.0,1.1018262]
[1757023417495,0.29952945,110550.0,110540.0,1.01137]
[1757023417900,0.29952945,110550.0,110540.0,1.01113]
[1757023418706,0.29952945,110550.0,110540.0,1.1015862]
[1757023419100,0.29952945,110550.0,110540.0,1.01113]
[1757023422910,0.01498,110550.0,110540.0,1.1015863]
[1757023423104,0.001,110550.0,110540.0,1.3581063]
[1757023423807,0.001,110550.0,110540.0,1.71117664]
[1757023423992,0.001,110550.0,110540.0,1.61112315]
[1757023424403,0.29746945,110560.0,110550.0,0.1008781]
[1757023424708,0.29736945,110560.0,110550.0,0.01043]
[1757023425409,0.02108571,110570.0,110550.0,0.3690386]
[1757023425598,0.30643516,110570.0,110560.0,0.84851]
[1757023425800,0.30633516,110570.0,110560.0,0.01043]
[1757023426000,0.55633516,110570.0,110560.0,0.64068]
[1757023426202,0.55633516,110570.0,110560.0,0.85335]
[1757023426511,0.55633516,110570.0,110560.0,0.86263515]
[1757023426705,0.55633516,110570.0,110560.0,0.00452]
[1757023426907,0.55633516,110570.0,110560.0,0.5544]
[1757023427412,0.55633516,110570.0,110560.0,0.92655]
[1757023427906,0.55633516,110570.0,110560.0,0.08827]
[1757023428208,0.55633516,110570.0,110560.0,0.16243]
[1757023428404,0.55633516,110570.0,110560.0,0.76283]
[1757023428802,0.55633516,110570.0,110560.0,0.16243]
[1757023429103,0.55633516,110570.0,110560.0,0.59387]
[1757023432413,0.55633516,110570.0,110560.0,0.16243]
[1757023435110,0.55633516,110570.0,110560.0,0.17286]
[1757023436215,0.30633516,110570.0,110560.0,0.17286]
[1757023439012,0.30633516,110570.0,110560.0,1.0095]
[1757023442109,0.30633516,110570.0,110560.0,0.17286]
[1757023442315,0.30633516,110570.0,110560.0,1.0093]
[1757023442913,0.30633516,110570.0,110560.0,0.17286]
[1757023443111,0.30633516,110570.0,110560.0,1.00918]
[1757023445516,0.30633516,110570.0,110560.0,1.00906]
[1757023447610,0.30633516,110570.0,110560.0,1.00894]
[1757023449021,0.30633516,110570.0,110560.0,0.17286]
[1757023449319,0.30633516,110570.0,110560.0,1.0089]
[1757023449619,0.30633516,110570.0,110560.0,0.95262]
[1757023459527,0.04372571,110570.0,110560.0,0.95262]
[1757023459827,0.30633516,110570.0,110560.0,0.95262]
[1757023463917,0.00803571,110570.0,110560.0,1.22085861]
[1757023464121,0.00803571,110570.0,110560.0,1.22737861]
[1757023464319,0.00803571,110570.0,110560.0,1.28121861]
[1757023465025,0.27064516,110570.0,110560.0,1.27461861]
[1757023465424,0.2704829,110570.0,110560.0,1.27461861]
[1757023468033,0.2935929,110570.0,110560.0,0.44109861]
[1757023468233,0.3064729,110570.0,110560.0,1.27505861]
[1757023473635,0.3064729,110570.0,110560.0,0.44109861]
[1757023473841,0.3064729,110570.0,110560.0,1.27433861]
[1757023475840,0.2833629,110570.0,110560.0,1.27433861]
[1757023476043,0.2704829,110570.0,110560.0,1.5367858]
[1757023477744,0.2704829,110570.0,110560.0,1.5361458]
[1757023479647,0.2704829,110570.0,110560.0,1.27369861]
[1757023479848,0.2704829,110570.0,110560.0,1.5361458]
[1757023480146,0.2704829,110570.0,110560.0,1.8965458]
[1757023480547,0.2704829,110570.0,110560.0,1.63409861]
[1757023480943,0.2704829,110570.0,110560.0,1.8965458]
[1757023481846,0.2704829,110570.0,110560.0,0.80189861]
[1757023481847,0.3064729,110570.0,110560.0,0.80189861]
[1757023482041,0.3064729,110570.0,110560.0,1.63405861]
[1757023482347,0.3064729,110570.0,110560.0,1.79661457]
[1757023483750,0.3064729,110570.0,110560.0,0.96445457]
[1757023483945,0.3064729,110570.0,110560.0,1.79661457]
[1757023485057,0.04402571,110570.0,110560.0,1.79661457]
[1757023485255,0.3064729,110570.0,110560.0,1.79661457]
[1757023485457,0.3064729,110570.0,110560.0,1.63405861]
[1757023486157,0.3064729,110570.0,110560.0,1.79661457]
[1757023486958,0.3064729,110570.0,110560.0,1.63405861]
[1757023493853,0.3064729,110570.0,110560.0,1.63377861]
[1757023494165,0.04402571,110570.0,110560.0,1.63377861]
[1757023494466,0.3064729,110570.0,110560.0,1.8962258]
[1757023494870,0.3064729,110570.0,110560.0,1.63377861]
[1757023495563,0.3064729,110570.0,110560.0,1.8962258]
[1757023495765,0.81892009,110570.0,110560.0,1.02289861]
[1757023495960,0.81892009,110570.0,110560.0,1.38369861]
[1757023496470,0.5564729,110570.0,110560.0,1.38369861]
[1757023500961,0.2833629,110570.0,110560.0,1.6461458]
[1757023501473,0.02091571,110570.0,110560.0,1.38369861]
[1757023501666,0.2833629,110570.0,110560.0,1.6461458]
[1757023501966,0.2833629,110570.0,110560.0,1.736585]
[1757023503572,0.00803571,110570.0,110560.0,1.736585]
[1757023503874,0.2704829,110570.0,110560.0,1.736585]
[1757023505877,0.00803571,110570.0,110560.0,1.736585]
[1757023506077,0.2704829,110570.0,110560.0,1.736585]
[1757023506478,0.2704829,110570.0,110560.0,1.89914096]
[1757023508783,0.2704829,110570.0,110560.0,1.63553377]
[1757023508977,0.2704829,110570.0,110560.0,1.89798096]
[1757023511377,0.2704829,110570.0,110560.0,1.63505377]
[1757023511674,0.2704829,110570.0,110560.0,1.89750096]
[1757023513677,0.2704829,110570.0,110560.0,1.06734096]
[1757023513973,0.2704829,110570.0,110560.0,1.89714096]
[1757023515077,0.38188965,110600.0,110560.0,2.91453268]
[1757023515279,0.03651,110610.0,110590.0,0.3608]
[1757023515580,0.26244719,110600.0,110590.0,0.3609]
[1757023515877,0.26244719,110600.0,110590.0,1.30555641]
[1757023516376,0.26244719,110600.0,110590.0,1.39596901]
[1757023516579,0.26244719,110600.0,110590.0,1.31007641]
[1757023517173,0.26244719,110600.0,110590.0,1.5725236]
[1757023517378,0.03951,110610.0,110590.0,1.6560136]
[1757023517579,0.26244719,110600.0,110590.0,1.7465261]
[1757023517875,0.27908719,110600.0,110590.0,1.46762641]
[1757023518083,0.27908719,110600.0,110590.0,1.48589007]
[1757023518573,0.27908719,110600.0,110590.0,1.74833726]
[1757023518778,0.27908719,110600.0,110590.0,1.82127682]
[1757023518980,0.27908719,110600.0,110590.0,1.08208922]
[1757023519175,0.27908719,110600.0,110590.0,0.72922963]
[1757023519374,0.27908719,110600.0,110590.0,1.91148892]
[1757023519680,0.27908719,110600.0,110590.0,1.82107682]
[1757023520078,0.27908719,110600.0,110590.0,1.70624041]
[1757023520280,0.27908719,110600.0,110590.0,1.79665251]
[1757023521082,0.27908719,110600.0,110590.0,1.70608041]
[1757023521581,0.27908719,110600.0,110590.0,1.70607311]
[1757023523076,0.27908719,110600.0,110590.0,1.70583311]
[1757023524090,0.26644719,110600.0,110590.0,1.88666491]
[1757023524279,0.004,110600.0,110590.0,1.88666491]
[1757023524783,0.26644719,110600.0,110590.0,1.88666491]
[1757023525385,0.004,110600.0,110590.0,1.88666491]
[1757023525584,0.004,110600.0,110590.0,1.62421772]
[1757023527685,0.004,110600.0,110590.0,1.88647121]
[1757023531088,0.004,110600.0,110590.0,1.05747121]
[1757023531283,0.004,110600.0,110590.0,1.62889742]
[1757023535392,0.004,110600.0,110590.0,1.89115091]
[1757023537291,0.004,110600.0,110590.0,1.62889742]
[1757023537484,0.004,110600.0,110590.0,1.77909742]
[1757023537786,0.004,110600.0,110590.0,1.62889742]
[1757023544989,0.004,110600.0,110590.0,1.89115091]
[1757023551696,0.004,110600.0,110590.0,2.05370687]
[1757023552495,0.004,110600.0,110590.0,1.89115091]
[1757023553302,0.004,110600.0,110590.0,2.05370687]
[1757023555101,0.004,110600.0,110590.0,2.05106687]
[1757023556104,0.004,110600.0,110590.0,1.12961537]
[1757023556306,0.01698,110600.0,110590.0,1.78977498]
[1757023556506,0.004,110600.0,110590.0,1.78977498]
[1757023557306,0.004,110600.0,110590.0,2.05202847]
[1757023562811,0.004,110600.0,110590.0,0.95777498]
[1757023563011,0.004,110600.0,110590.0,2.05106847]
[1757023564808,0.004,110600.0,110590.0,1.78881498]
[1757023565009,0.004,110600.0,110590.0,2.05106847]
[1757023565813,0.004,110600.0,110590.0,1.22002847]
[1757023566016,0.004,110600.0,110590.0,2.05082847]
[1757023570821,0.30199349,110600.0,110590.0,0.86736188]
[1757023571022,0.30199349,110600.0,110590.0,1.69788188]
[1757023571926,0.30199349,110600.0,110590.0,1.53532592]
[1757023572829,0.30199349,110600.0,110590.0,1.62573842]
[1757023575230,0.03974,110600.0,110590.0,1.62573842]
[1757023575432,0.30199349,110600.0,110590.0,1.62573842]
[1757023575622,0.03974,110600.0,110590.0,1.62573842]
[1757023576024,0.30199349,110600.0,110590.0,1.62573842]
[1757023578332,0.30199349,110600.0,110590.0,1.77593842]
[1757023578935,0.30199349,110600.0,110590.0,1.62573842]
[1757023579131,0.03974,110600.0,110590.0,1.62573842]
[1757023579930,0.03974,110600.0,110590.0,1.53532592]
[1757023580530,0.03974,110600.0,110590.0,0.70480592]
[1757023580736,0.30199349,110600.0,110590.0,1.44474592]
[1757023581737,0.30199349,110600.0,110590.0,1.53515952]
[1757023583736,0.01698,110600.0,110590.0,1.53515952]
[1757023584935,0.01698,110600.0,110590.0,1.69771548]
[1757023586229,0.004,110600.0,110590.0,1.78813548]
[1757023587439,0.004,110600.0,110590.0,2.05040141]
[1757023587440,0.26626593,110600.0,110590.0,2.05040141]
[1757023590332,0.26426593,110600.0,110590.0,2.05040141]
[1757023593838,0.002,110600.0,110590.0,2.05040141]
[1757023594042,0.26426593,110600.0,110590.0,2.05040141]
[1757023600052,0.26426593,110600.0,110590.0,1.78813548]
[1757023600350,0.26426593,110600.0,110590.0,2.05040141]
[1757023609747,0.56022186,110600.0,110590.0,0.86736188]
[1757023610060,0.81022186,110600.0,110590.0,1.24522188]
[1757023610254,0.81022186,110600.0,110590.0,0.41614188]
[1757023610458,0.56022186,110600.0,110590.0,1.69643448]
[1757023610850,0.56022186,110600.0,110590.0,1.53387852]
[1757023613152,0.56022186,110600.0,110590.0,0.61438592]
[1757023613358,0.56022186,110600.0,110590.0,1.44338592]
[1757023616262,0.03569,110600.0,110590.0,1.44338592]
[1757023616462,0.56022186,110600.0,110590.0,1.44338592]
[1757023616662,0.56022186,110600.0,110590.0,0.61438592]
[1757023616864,0.56022186,110600.0,110590.0,1.44342592]
[1757023617164,0.03569,110600.0,110590.0,1.44342592]
[1757023617365,0.56022186,110600.0,110590.0,1.44342592]
[1757023618462,0.56022186,110600.0,110590.0,0.61438592]
[1757023618760,0.56022186,110600.0,110590.0,1.44342592]
[1757023620963,0.002,110600.0,110590.0,2.04610455]
[1757023621157,0.002,110600.0,110590.0,2.13652455]
[1757023621353,0.002,110600.0,110590.0,2.04908051]
[1757023621758,0.002,110600.0,110590.0,2.29908051]
[1757023622057,0.002,110600.0,110590.0,2.13652455]
[1757023624371,0.002,110600.0,110590.0,2.29845586]
[1757023626570,0.002,110600.0,110590.0,2.03618993]
[1757023626770,0.002,110600.0,110590.0,2.29845586]
[1757023627368,0.56022186,110600.0,110590.0,1.60667723]
[1757023627566,0.56022186,110600.0,110590.0,1.44474592]
[1757023627968,0.03569,110600.0,110590.0,1.44474592]
[1757023628166,0.56022186,110600.0,110590.0,1.44474592]
[1757023633869,1.07248779,110600.0,110590.0,1.44562592]
[1757023634267,1.07248779,110600.0,110590.0,1.08482592]
[1757023634467,1.07248779,110600.0,110590.0,0.23532956]
[1757023634669,1.07248779,110600.0,110590.0,1.06656956]
[1757023634875,1.07248779,110600.0,110590.0,1.06760956]
[1757023635374,1.07248779,110600.0,110590.0,1.06756956]
[1757023635566,1.43328779,110600.0,110590.0,1.06756956]
[1757023635967,1.43328779,110600.0,110590.0,0.23532956]
[1757023636266,1.43328779,110600.0,110590.0,1.06748956]
[1757023641381,1.43328779,110600.0,110590.0,0.23532956]
[1757023641573,1.43328779,110600.0,110590.0,0.16239]
[1757023646072,1.43328779,110600.0,110580.0,0.00023591]
[1757023646276,0.03618,110560.0,110550.0,0.38100603]
[1757023646482,0.56071186,110560.0,110550.0,1.21216603]
[1757023647283,0.03618,110560.0,110550.0,1.21216603]
[1757023647594,0.56071186,110560.0,110550.0,1.21516603]
[1757023648870,0.82297779,110560.0,110550.0,0.37499]
[1757023649071,0.82297779,110560.0,110550.0,0.83424]
[1757023649275,0.82297779,110560.0,110550.0,0.84327894]
[1757023649475,0.5613623,110560.0,110550.0,0.84527894]
[1757023649872,0.5613623,110560.0,110550.0,0.83624]
[1757023650385,0.5613623,110560.0,110550.0,0.83524]
[1757023651884,0.5613623,110560.0,110550.0,0.83324]
[1757023652286,0.29877115,110560.0,110550.0,0.83324]
[1757023652479,0.29877115,110560.0,110550.0,0.84443]
[1757023652683,0.03618,110560.0,110550.0,0.84443]
[1757023652979,0.29877115,110560.0,110550.0,0.84443]
[1757023653785,0.29877115,110560.0,110550.0,0.01319]
[1757023653986,0.29877115,110560.0,110550.0,0.84499]
[1757023654185,0.29877115,110560.0,110550.0,0.85417853]
[1757023662191,0.29877115,110560.0,110550.0,1.21497853]
[1757023662492,0.01396,110560.0,110550.0,1.55466373]
[1757023662685,0.27655115,110560.0,110550.0,1.55466373]
[1757023665799,0.01396,110560.0,110550.0,1.55466373]
[1757023665998,0.29877115,110560.0,110550.0,1.55478373]
[1757023666198,0.03618,110560.0,110550.0,1.55478373]
[1757023666392,0.29877115,110560.0,110550.0,1.55478373]
[1757023667902,0.03618,110560.0,110550.0,1.55478373]
[1757023670814,0.29877115,110560.0,110550.0,1.55478373]
[1757023672607,0.29877115,110560.0,110550.0,0.72362373]
[1757023672806,0.29877115,110560.0,110550.0,1.55486373]
[1757023675313,0.03618,110560.0,110550.0,1.55486373]
[1757023675509,0.01396,110560.0,110550.0,1.30486373]
[1757023675715,0.01406,110570.0,110560.0,0.1016285]
[1757023675911,0.01396,110570.0,110560.0,0.4624285]
[1757023676611,0.01396,110570.0,110560.0,1.2935085]
[1757023677909,0.01396,110570.0,110560.0,0.4624285]
[1757023678114,0.01396,110570.0,110560.0,1.2933085]
[1757023678913,0.29993115,110580.0,110570.0,0.1016189]
[1757023679113,0.29993115,110580.0,110570.0,0.4624189]
[1757023679114,0.29983115,110580.0,110570.0,0.4624189]
[1757023680114,0.30083115,110580.0,110570.0,0.4624189]
[1757023680411,0.001,110580.0,110570.0,0.9929839]
[1757023680612,0.001,110580.0,110570.0,1.8234639]
[1757023680813,0.002,110580.0,110570.0,1.8234639]
[1757023681114,0.002,110580.0,110570.0,1.91390025]
[1757023681412,0.002,110580.0,110570.0,1.66390025]
[1757023681608,0.001,110580.0,110570.0,1.4017491]
[1757023681815,0.01406,110590.0,110580.0,0.0904208]
[1757023682115,0.01406,110590.0,110580.0,0.4624108]
[1757023682116,0.01396,110590.0,110580.0,0.4624108]
[1757023682303,0.29935115,110600.0,110590.0,0.1016026]
[1757023682508,0.29925115,110600.0,110590.0,1.2935226]
[1757023682709,0.29925115,110600.0,110590.0,1.2980426]
[1757023684318,0.30025115,110600.0,110590.0,1.2980426]
[1757023684918,0.30125115,110600.0,110590.0,1.2980426]
[1757023686218,0.30125115,110600.0,110590.0,1.36904134]
[1757023687314,0.30125115,110600.0,110590.0,0.53772134]
[1757023687515,0.30125115,110600.0,110590.0,1.36880134]
[1757023691022,0.30125115,110600.0,110590.0,0.53772134]
[1757023691325,0.30125115,110600.0,110590.0,1.36828134]
[1757023695224,0.002,110600.0,110590.0,1.98961768]
[1757023695431,0.002,110600.0,110590.0,1.72702653]
[1757023695726,0.002,110600.0,110590.0,1.98961768]
[1757023701930,0.002,110600.0,110590.0,1.98509768]
[1757023702825,0.002,110600.0,110590.0,1.98961768]
[1757023703031,0.002,110600.0,110590.0,2.13981768]
[1757023706734,0.0001,110610.0,110600.0,0.1033944]
[1757023706923,0.32487263,110620.0,110610.0,0.0983862]
[1757023707230,0.32477263,110620.0,110610.0,1.2890662]
[1757023708139,0.32577263,110620.0,110610.0,1.2890662]
[1757023708333,0.32577263,110620.0,110610.0,0.4591862]
[1757023708733,0.32777263,110620.0,110610.0,1.2887862]
[1757023708934,0.32777263,110620.0,110610.0,0.4591862]
[1757023709137,0.32777263,110620.0,110610.0,1.2887862]
[1757023709436,0.58964066,110620.0,110610.0,1.2887862]
[1757023709637,0.58964066,110620.0,110610.0,1.2887062]
[1757023710934,0.58964066,110620.0,110610.0,0.4591862]
[1757023711138,0.58964066,110620.0,110610.0,0.36879]
[1757023711358,0.83964066,110620.0,110610.0,1.19827]
[1757023712241,0.83964066,110620.0,110610.0,1.20724846]
[1757023713234,0.83964066,110620.0,110610.0,0.37776846]
[1757023713444,0.83964066,110620.0,110610.0,1.20724846]
[1757023715741,0.83964066,110620.0,110610.0,0.37776846]
[1757023716047,0.83964066,110620.0,110610.0,1.19921846]
[1757023716541,0.83964066,110620.0,110610.0,0.37776846]
[1757023716749,0.83964066,110620.0,110610.0,1.20720846]
[1757023717045,0.83964066,110620.0,110610.0,1.20728846]
[1757023718332,0.83964066,110620.0,110610.0,1.21180846]
[1757023720343,1.10187025,110620.0,110610.0,1.21180846]
[1757023721251,1.10187025,110620.0,110610.0,0.38228846]
[1757023721549,1.10187025,110620.0,110610.0,1.21172846]
[1757023721748,1.10187025,110620.0,110610.0,0.38228846]
[1757023721949,1.10187025,110620.0,110610.0,1.21172846]
[1757023726840,1.10187025,110620.0,110610.0,0.85092846]
[1757023727035,1.46267025,110620.0,110610.0,0.85088846]
[1757023727241,1.46267025,110620.0,110610.0,0.83392]
[1757023727547,1.46267025,110620.0,110610.0,0.00452]
[1757023727744,1.46267025,110620.0,110610.0,0.83392]
[1757023727953,1.46267025,110620.0,110610.0,0.24342167]
[1757023728947,1.46267025,110620.0,110600.0,0.13972]
[1757023729251,1.18387877,110610.0,110600.0,0.91512]
[1757023729446,1.18387877,110610.0,110600.0,0.91502]